[Event "Titled Tuesday Blitz May 4 2021"]
[White "Kalajzic, Ivan"]
[Black "Tejedor Fuente, Enrique"]
[WhiteFideId "14506378"]
[BlackFideId "2299100"]
[WhiteElo "2163"]
[BlackElo "2535"]
[Result "0-1"]
[Round "04"]
[TimeControl "180+1"]
[Date "2021.05.04"]
[WhiteClock "0:00:16"]
[BlackClock "0:00:04"]

1. b3 {[%clk 0:03:00]}  Nf6 {[%clk 0:00:04]} 2. Bb2 {[%clk 0:02:52]}  e6 {[%clk 0:00:05]} 3. g3 {[%clk 0:02:45]}  d5 {[%clk 0:00:05]} 4. Bg2 {[%clk 0:02:44]}  Be7 {[%clk 0:00:06]} 5. d3 {[%clk 0:02:30]}  O-O {[%clk 0:00:07]} 6. c4 {[%clk 0:02:26]}  a5 {[%clk 0:00:08]} 7. a3 {[%clk 0:02:25]}  a4 {[%clk 0:00:07]} 8. b4 {[%clk 0:02:25]}  dxc4 {[%clk 0:00:08]} 9. dxc4 {[%clk 0:02:25]}  Qxd1+ {[%clk 0:00:08]} 10. Kxd1 {[%clk 0:02:25]}  c5 {[%clk 0:00:07]} 11. b5 {[%clk 0:02:24]}  Nbd7 {[%clk 0:00:07]} 12. Nf3 {[%clk 0:02:20]}  Nb6 {[%clk 0:00:05]} 13. Nbd2 {[%clk 0:02:15]}  Nfd7 {[%clk 0:00:04]} 14. Kc2 {[%clk 0:02:10]}  f6 {[%clk 0:00:04]} 15. Rhd1 {[%clk 0:01:56]}  Rd8 {[%clk 0:00:04]} 16. e4 {[%clk 0:01:53]}  e5 {[%clk 0:00:04]} 17. Bf1 {[%clk 0:01:45]}  Nf8 {[%clk 0:00:03]} 18. Be2 {[%clk 0:01:45]}  Bg4 {[%clk 0:00:02]} 19. Bc3 {[%clk 0:01:30]}  Ne6 {[%clk 0:00:02]} 20. Ng1 {[%clk 0:01:25]}  Bxe2 {[%clk 0:00:02]} 21. Nxe2 {[%clk 0:01:25]}  Rac8 {[%clk 0:00:02]} 22. Ba5 {[%clk 0:01:19]}  Rxd2+ {[%clk 0:00:02]} 23. Rxd2 {[%clk 0:01:13]}  Nxc4 {[%clk 0:00:03]} 24. Rd7 {[%clk 0:01:08]}  Kf7 {[%clk 0:00:02]} 25. Bc3 {[%clk 0:01:04]}  Nd8 {[%clk 0:00:01]} 26. Rad1 {[%clk 0:01:01]}  Nxa3+ {[%clk 0:00:02]} 27. Kc1 {[%clk 0:00:57]}  Nxb5 {[%clk 0:00:01]} 28. Ba5 {[%clk 0:00:55]}  Nc6 {[%clk 0:00:01]} 29. Rxb7 {[%clk 0:00:51]}  Nxa5 {[%clk 0:00:01]} 30. Rxb5 {[%clk 0:00:51]}  Nb3+ {[%clk 0:00:02]} 31. Kb2 {[%clk 0:00:49]}  c4 {[%clk 0:00:02]} 32. Rd7 {[%clk 0:00:48]}  a3+ {[%clk 0:00:02]} 33. Ka2 {[%clk 0:00:46]}  Nc5 {[%clk 0:00:03]} 34. Ra7 {[%clk 0:00:39]}  Nxe4 {[%clk 0:00:03]} 35. Rbb7 {[%clk 0:00:36]}  Re8 {[%clk 0:00:03]} 36. f3 {[%clk 0:00:35]}  Nd6 {[%clk 0:00:03]} 37. Rd7 {[%clk 0:00:35]}  Nb5 {[%clk 0:00:03]} 38. Rab7 {[%clk 0:00:33]}  Nd4 {[%clk 0:00:02]} 39. Nxd4 {[%clk 0:00:32]}  exd4 {[%clk 0:00:03]} 40. Rxd4 {[%clk 0:00:32]}  Rc8 {[%clk 0:00:03]} 41. Rdd7 {[%clk 0:00:32]}  Re8 {[%clk 0:00:03]} 42. Rdc7 {[%clk 0:00:32]}  Ke6 {[%clk 0:00:03]} 43. Rxc4 {[%clk 0:00:31]}  Kf7 {[%clk 0:00:02]} 44. Rcc7 {[%clk 0:00:31]}  h6 {[%clk 0:00:02]} 45. f4 {[%clk 0:00:31]}  Ke6 {[%clk 0:00:02]} 46. g4 {[%clk 0:00:31]}  f5 {[%clk 0:00:02]} 47. h3 {[%clk 0:00:28]}  g6 {[%clk 0:00:02]} 48. Kb3 {[%clk 0:00:28]}  h5 {[%clk 0:00:02]} 49. Rc6+ {[%clk 0:00:28]}  Kd5 {[%clk 0:00:01]} 50. Ra6 {[%clk 0:00:27]}  Bc5 {[%clk 0:00:01]} 51. Rb5 {[%clk 0:00:25]}  Re3+ {[%clk 0:00:01]} 52. Kc2 {[%clk 0:00:26]}  Re2+ {[%clk 0:00:01]} 53. Kd3 {[%clk 0:00:26]}  Rh2 {[%clk 0:00:02]} 54. gxf5 {[%clk 0:00:26]}  Rxh3+ {[%clk 0:00:02]} 55. Ke2 {[%clk 0:00:26]}  gxf5 {[%clk 0:00:02]} 56. Raa5 {[%clk 0:00:26]}  Rc3 {[%clk 0:00:01]} 57. Rxc5+ {[%clk 0:00:26]}  Rxc5 {[%clk 0:00:01]} 58. Rxa3 {[%clk 0:00:27]}  Ke4 {[%clk 0:00:02]} 59. Ra4+ {[%clk 0:00:26]}  Kd5 {[%clk 0:00:02]} 60. Ra3 {[%clk 0:00:26]}  Rc4 {[%clk 0:00:02]} 61. Ke3 {[%clk 0:00:24]}  Re4+ {[%clk 0:00:02]} 62. Kf3 {[%clk 0:00:24]}  Rc4 {[%clk 0:00:02]} 63. Ra5+ {[%clk 0:00:24]}  Rc5 {[%clk 0:00:02]} 64. Ra8 {[%clk 0:00:23]}  Rc3+ {[%clk 0:00:02]} 65. Kf2 {[%clk 0:00:23]}  h4 {[%clk 0:00:02]} 66. Re8 {[%clk 0:00:22]}  Rc5 {[%clk 0:00:02]} 67. Re5+ {[%clk 0:00:22]}  Kd4 {[%clk 0:00:02]} 68. Re8 {[%clk 0:00:22]}  Rc2+ {[%clk 0:00:02]} 69. Kg1 {[%clk 0:00:22]}  Rc3 {[%clk 0:00:01]} 70. Rd8+ {[%clk 0:00:19]}  Ke4 {[%clk 0:00:01]} 71. Rh8 {[%clk 0:00:18]}  h3 {[%clk 0:00:01]} 72. Rh4 {[%clk 0:00:16]}  Rf3 {[%clk 0:00:02]} 73. Kh1 {[%clk 0:00:14]}  Ke3 {[%clk 0:00:02]} 74. Kh2 {[%clk 0:00:14]}  Ke4 {[%clk 0:00:02]} 75. Kh1 {[%clk 0:00:14]}  Rxf4 {[%clk 0:00:02]} 76. Kh2 {[%clk 0:00:15]}  Rxh4 {[%clk 0:00:02]} 77. Kg3 {[%clk 0:00:15]}  h2 {[%clk 0:00:03]} 78. Kg2 {[%clk 0:00:15]}  h1=Q+ {[%clk 0:00:03]} 79. Kf2 {[%clk 0:00:16]}  Rh2+ {[%clk 0:00:03]} 80. Kg3 {[%clk 0:00:16]}  Qg2# {[%clk 0:00:04]} 0-1


[Site "https://www.chess.com"]

[Event "Titled Tuesday Blitz May 4 2021"]
[White "Kalogeris, Ioannis"]
[Black "Abdusattorov, Nodirbek"]
[WhiteFideId "4239563"]
[BlackFideId "14204118"]
[WhiteElo "2566"]
[BlackElo "2920"]
[Result "0-1"]
[Round "04"]
[TimeControl "180+1"]
[Date "2021.05.04"]
[WhiteClock "0:00:31"]
[BlackClock "0:00:56"]

1. e4 {[%clk 0:03:00]}  c5 {[%clk 0:02:58]} 2. Nf3 {[%clk 0:03:01]}  e6 {[%clk 0:02:58]} 3. Nc3 {[%clk 0:02:59]}  Nc6 {[%clk 0:02:57]} 4. Bb5 {[%clk 0:02:58]}  Nge7 {[%clk 0:02:54]} 5. O-O {[%clk 0:02:58]}  g6 {[%clk 0:02:50]} 6. d4 {[%clk 0:02:57]}  cxd4 {[%clk 0:02:50]} 7. Nxd4 {[%clk 0:02:56]}  Bg7 {[%clk 0:02:50]} 8. Bxc6 {[%clk 0:02:50]}  dxc6 {[%clk 0:02:46]} 9. Be3 {[%clk 0:02:44]}  e5 {[%clk 0:02:46]} 10. Nb3 {[%clk 0:02:43]}  Qxd1 {[%clk 0:02:44]} 11. Rfxd1 {[%clk 0:02:40]}  f5 {[%clk 0:02:27]} 12. Na5 {[%clk 0:02:28]}  f4 {[%clk 0:02:08]} 13. Bc5 {[%clk 0:02:20]}  Bf6 {[%clk 0:02:07]} 14. Nc4 {[%clk 0:02:16]}  Kf7 {[%clk 0:02:05]} 15. Nd6+ {[%clk 0:02:06]}  Ke6 {[%clk 0:02:05]} 16. a4 {[%clk 0:01:38]}  b6 {[%clk 0:02:03]} 17. Ba3 {[%clk 0:01:36]}  Ba6 {[%clk 0:02:01]} 18. b4 {[%clk 0:01:34]}  Bc8 {[%clk 0:01:33]} 19. Rd3 {[%clk 0:01:24]}  Rd8 {[%clk 0:01:29]} 20. Rad1 {[%clk 0:01:24]}  a5 {[%clk 0:01:23]} 21. bxa5 {[%clk 0:01:11]}  bxa5 {[%clk 0:01:22]} 22. Nc4 {[%clk 0:01:09]}  Rd4 {[%clk 0:01:21]} 23. Nxe5 {[%clk 0:01:02]}  Rxd3 {[%clk 0:01:18]} 24. Nxd3 {[%clk 0:00:44]}  Bxc3 {[%clk 0:01:19]} 25. Nxf4+ {[%clk 0:00:41]}  Kf7 {[%clk 0:01:19]} 26. Bd6 {[%clk 0:00:35]}  Bb4 {[%clk 0:01:09]} 27. Be5 {[%clk 0:00:34]}  Ba6 {[%clk 0:00:56]} 28. Rd7 {[%clk 0:00:33]}  g5 {[%clk 0:00:56]} 29. Nh3 {[%clk 0:00:31]}  Ke6 {[%clk 0:00:56]} 0-1


[Site "https://www.chess.com"]

[Event "Titled Tuesday Blitz May 4 2021"]
[White "Keymer, Vincent"]
[Black "Diaz Camallonga, Carles"]
[WhiteFideId "12940690"]
[BlackFideId "22235256"]
[WhiteElo "2474"]
[BlackElo "2438"]
[Result "1-0"]
[Round "04"]
[TimeControl "180+1"]
[Date "2021.05.04"]
[WhiteClock "0:00:22"]
[BlackClock "0:00:03"]

1. Nf3 {[%clk 0:03:00]}  Nf6 {[%clk 0:02:59]} 2. c4 {[%clk 0:03:01]}  e6 {[%clk 0:02:59]} 3. Nc3 {[%clk 0:03:01]}  d5 {[%clk 0:02:59]} 4. e3 {[%clk 0:03:02]}  c5 {[%clk 0:02:56]} 5. cxd5 {[%clk 0:03:01]}  exd5 {[%clk 0:02:56]} 6. d4 {[%clk 0:03:01]}  Nc6 {[%clk 0:02:56]} 7. Bb5 {[%clk 0:03:00]}  Bd6 {[%clk 0:02:54]} 8. dxc5 {[%clk 0:03:00]}  Bxc5 {[%clk 0:02:55]} 9. O-O {[%clk 0:03:01]}  O-O {[%clk 0:02:55]} 10. b3 {[%clk 0:03:01]}  Bg4 {[%clk 0:02:50]} 11. h3 {[%clk 0:02:57]}  Bh5 {[%clk 0:02:49]} 12. Bb2 {[%clk 0:02:57]}  d4 {[%clk 0:02:22]} 13. Na4 {[%clk 0:02:53]}  Qd5 {[%clk 0:01:38]} 14. Bxc6 {[%clk 0:02:32]}  bxc6 {[%clk 0:01:27]} 15. Nxc5 {[%clk 0:02:23]}  Qxc5 {[%clk 0:01:28]} 16. Qxd4 {[%clk 0:02:21]}  Qxd4 {[%clk 0:01:23]} 17. Nxd4 {[%clk 0:02:20]}  c5 {[%clk 0:01:20]} 18. Nf5 {[%clk 0:02:13]}  Rfd8 {[%clk 0:01:12]} 19. Rfc1 {[%clk 0:02:10]}  Bg6 {[%clk 0:00:59]} 20. Ne7+ {[%clk 0:02:09]}  Kf8 {[%clk 0:00:59]} 21. Bxf6 {[%clk 0:02:09]}  gxf6 {[%clk 0:00:58]} 22. Nxg6+ {[%clk 0:02:10]}  hxg6 {[%clk 0:00:58]} 23. Rxc5 {[%clk 0:02:11]}  Rd2 {[%clk 0:00:58]} 24. Ra5 {[%clk 0:02:11]}  Kg7 {[%clk 0:00:53]} 25. b4 {[%clk 0:02:10]}  Rb8 {[%clk 0:00:47]} 26. a3 {[%clk 0:02:07]}  Rb7 {[%clk 0:00:46]} 27. Rc1 {[%clk 0:02:04]}  Rbd7 {[%clk 0:00:46]} 28. g4 {[%clk 0:02:01]}  Ra2 {[%clk 0:00:45]} 29. h4 {[%clk 0:01:58]}  Rdd2 {[%clk 0:00:43]} 30. Rf1 {[%clk 0:01:58]}  Rd7 {[%clk 0:00:43]} 31. Kg2 {[%clk 0:01:57]}  Rd3 {[%clk 0:00:40]} 32. Rxa7 {[%clk 0:01:40]}  Rxe3 {[%clk 0:00:39]} 33. b5 {[%clk 0:01:36]}  Rb3 {[%clk 0:00:35]} 34. a4 {[%clk 0:01:29]}  f5 {[%clk 0:00:20]} 35. gxf5 {[%clk 0:01:26]}  gxf5 {[%clk 0:00:21]} 36. h5 {[%clk 0:01:12]}  Rb4 {[%clk 0:00:19]} 37. Ra6 {[%clk 0:00:49]}  Rg4+ {[%clk 0:00:13]} 38. Kf3 {[%clk 0:00:36]}  Ra3+ {[%clk 0:00:13]} 39. Ke2 {[%clk 0:00:36]}  Re4+ {[%clk 0:00:08]} 40. Kd2 {[%clk 0:00:36]}  Rf4 {[%clk 0:00:08]} 41. b6 {[%clk 0:00:32]}  Rb4 {[%clk 0:00:05]} 42. Rc1 {[%clk 0:00:28]}  Ra2+ {[%clk 0:00:03]} 43. Rc2 {[%clk 0:00:28]}  Ra3 {[%clk 0:00:03]} 44. a5 {[%clk 0:00:24]}  Kh6 {[%clk 0:00:02]} 45. b7+ {[%clk 0:00:21]}  Kxh5 {[%clk 0:00:03]} 46. Rb6 {[%clk 0:00:22]} 1-0


[Site "https://www.chess.com"]

[Event "Titled Tuesday Blitz May 4 2021"]
[White "Kiselev, Gennady"]
[Black "Fanha, Paulo"]
[WhiteFideId "4117107"]
[BlackFideId "1902148"]
[WhiteElo "2323"]
[BlackElo "1851"]
[Result "1-0"]
[Round "04"]
[TimeControl "180+1"]
[Date "2021.05.04"]
[WhiteClock "0:01:09"]
[BlackClock "0:00:15"]

1. e4 {[%clk 0:03:00]}  d5 {[%clk 0:02:59]} 2. exd5 {[%clk 0:02:59]}  Qxd5 {[%clk 0:02:58]} 3. Nc3 {[%clk 0:02:59]}  Qd6 {[%clk 0:02:57]} 4. d4 {[%clk 0:02:58]}  Nf6 {[%clk 0:02:57]} 5. Nf3 {[%clk 0:02:58]}  c6 {[%clk 0:02:56]} 6. Bc4 {[%clk 0:02:54]}  Bg4 {[%clk 0:02:55]} 7. O-O {[%clk 0:02:52]}  e6 {[%clk 0:02:52]} 8. Be3 {[%clk 0:02:49]}  Qc7 {[%clk 0:02:49]} 9. Re1 {[%clk 0:02:48]}  Bd6 {[%clk 0:02:45]} 10. h3 {[%clk 0:02:46]}  Bh5 {[%clk 0:02:41]} 11. Be2 {[%clk 0:02:44]}  O-O {[%clk 0:02:38]} 12. Bg5 {[%clk 0:02:43]}  Nbd7 {[%clk 0:02:34]} 13. Qd2 {[%clk 0:02:36]}  Rfe8 {[%clk 0:02:23]} 14. Rad1 {[%clk 0:02:33]}  b5 {[%clk 0:02:06]} 15. Qc1 {[%clk 0:02:11]}  a5 {[%clk 0:01:55]} 16. Kh1 {[%clk 0:02:04]}  a4 {[%clk 0:01:53]} 17. Ng1 {[%clk 0:01:57]}  Bxe2 {[%clk 0:01:47]} 18. Rxe2 {[%clk 0:01:50]}  b4 {[%clk 0:01:38]} 19. Ne4 {[%clk 0:01:46]}  Nxe4 {[%clk 0:01:36]} 20. Rxe4 {[%clk 0:01:46]}  c5 {[%clk 0:01:30]} 21. Nf3 {[%clk 0:01:42]}  cxd4 {[%clk 0:01:21]} 22. Rexd4 {[%clk 0:01:40]}  Ra6 {[%clk 0:01:16]} 23. Qd2 {[%clk 0:01:38]}  f6 {[%clk 0:00:52]} 24. Rxd6 {[%clk 0:01:31]}  Rxd6 {[%clk 0:00:41]} 25. Qxd6 {[%clk 0:01:30]}  Qxd6 {[%clk 0:00:40]} 26. Rxd6 {[%clk 0:01:27]}  Nc5 {[%clk 0:00:38]} 27. Be3 {[%clk 0:01:25]}  Ne4 {[%clk 0:00:31]} 28. Rd4 {[%clk 0:01:24]}  f5 {[%clk 0:00:27]} 29. Rxb4 {[%clk 0:01:23]}  Rd8 {[%clk 0:00:21]} 30. Rxa4 {[%clk 0:01:19]}  Rd1+ {[%clk 0:00:20]} 31. Kh2 {[%clk 0:01:17]}  h6 {[%clk 0:00:18]} 32. Rd4 {[%clk 0:01:11]}  g5 {[%clk 0:00:15]} 33. Rxd1 {[%clk 0:01:09]} 1-0


[Site "https://www.chess.com"]

[Event "Titled Tuesday Blitz May 4 2021"]
[White "Kollars, Dmitrij"]
[Black "Belous, Vladimir"]
[WhiteFideId "12909572"]
[BlackFideId "4174003"]
[WhiteElo "2576"]
[BlackElo "2583"]
[Result "0-1"]
[Round "04"]
[TimeControl "180+1"]
[Date "2021.05.04"]
[WhiteClock "0:00:05"]
[BlackClock "0:00:05"]

1. Nf3 {[%clk 0:03:00]}  c5 {[%clk 0:02:58]} 2. c4 {[%clk 0:02:58]}  Nc6 {[%clk 0:02:58]} 3. Nc3 {[%clk 0:02:57]}  g6 {[%clk 0:02:58]} 4. g3 {[%clk 0:02:51]}  Bg7 {[%clk 0:02:58]} 5. Bg2 {[%clk 0:02:52]}  d6 {[%clk 0:02:59]} 6. O-O {[%clk 0:02:52]}  Bf5 {[%clk 0:02:59]} 7. a3 {[%clk 0:02:46]}  Qd7 {[%clk 0:02:58]} 8. d3 {[%clk 0:02:44]}  Bh3 {[%clk 0:02:56]} 9. Bxh3 {[%clk 0:02:41]}  Qxh3 {[%clk 0:02:57]} 10. Rb1 {[%clk 0:02:36]}  h5 {[%clk 0:02:49]} 11. Nd5 {[%clk 0:02:33]}  Qd7 {[%clk 0:02:49]} 12. h4 {[%clk 0:02:20]}  e6 {[%clk 0:02:45]} 13. Nf4 {[%clk 0:02:20]}  Nge7 {[%clk 0:02:44]} 14. b4 {[%clk 0:02:20]}  b6 {[%clk 0:02:35]} 15. Qd2 {[%clk 0:02:20]}  Nd4 {[%clk 0:02:22]} 16. Nxd4 {[%clk 0:02:18]}  cxd4 {[%clk 0:02:23]} 17. b5 {[%clk 0:02:06]}  Qb7 {[%clk 0:02:04]} 18. a4 {[%clk 0:01:47]}  e5 {[%clk 0:02:01]} 19. Nh3 {[%clk 0:01:47]}  O-O {[%clk 0:01:51]} 20. Ba3 {[%clk 0:01:47]}  Qd7 {[%clk 0:01:45]} 21. Kh2 {[%clk 0:01:37]}  Nf5 {[%clk 0:01:43]} 22. Ng1 {[%clk 0:01:18]}  Nh6 {[%clk 0:01:29]} 23. Nf3 {[%clk 0:01:17]}  Ng4+ {[%clk 0:01:29]} 24. Kg2 {[%clk 0:01:17]}  Rfc8 {[%clk 0:01:30]} 25. a5 {[%clk 0:01:13]}  d5 {[%clk 0:01:25]} 26. cxd5 {[%clk 0:00:58]}  Qxd5 {[%clk 0:01:26]} 27. a6 {[%clk 0:00:56]}  Rc3 {[%clk 0:01:20]} 28. Bb2 {[%clk 0:00:27]}  Rc5 {[%clk 0:01:17]} 29. Ba3 {[%clk 0:00:18]}  Rxb5 {[%clk 0:01:15]} 30. Rxb5 {[%clk 0:00:19]}  Qxb5 {[%clk 0:01:16]} 31. Qc2 {[%clk 0:00:20]}  Qxa6 {[%clk 0:01:14]} 32. Qc6 {[%clk 0:00:19]}  Rc8 {[%clk 0:01:11]} 33. Qd7 {[%clk 0:00:19]}  Nf6 {[%clk 0:00:59]} 34. Qe7 {[%clk 0:00:20]}  Re8 {[%clk 0:00:51]} 35. Qd6 {[%clk 0:00:20]}  Qc8 {[%clk 0:00:32]} 36. Ng5 {[%clk 0:00:17]}  Qd7 {[%clk 0:00:26]} 37. Rc1 {[%clk 0:00:15]}  Qxd6 {[%clk 0:00:24]} 38. Bxd6 {[%clk 0:00:16]}  Bf8 {[%clk 0:00:20]} 39. Bxf8 {[%clk 0:00:13]}  Kxf8 {[%clk 0:00:21]} 40. Rc7 {[%clk 0:00:11]}  Re7 {[%clk 0:00:21]} 41. Rc8+ {[%clk 0:00:11]}  Kg7 {[%clk 0:00:21]} 42. Rd8 {[%clk 0:00:10]}  Rc7 {[%clk 0:00:18]} 43. Rb8 {[%clk 0:00:09]}  Nd7 {[%clk 0:00:17]} 44. Ra8 {[%clk 0:00:08]}  Nc5 {[%clk 0:00:17]} 45. Kf3 {[%clk 0:00:06]}  f6 {[%clk 0:00:17]} 46. Ne4 {[%clk 0:00:05]}  Nxe4 {[%clk 0:00:17]} 47. Kxe4 {[%clk 0:00:06]}  Rd7 {[%clk 0:00:17]} 48. f4 {[%clk 0:00:06]}  exf4 {[%clk 0:00:14]} 49. gxf4 {[%clk 0:00:07]}  b5 {[%clk 0:00:11]} 50. Rb8 {[%clk 0:00:07]}  a6 {[%clk 0:00:11]} 51. Rb6 {[%clk 0:00:07]}  Re7+ {[%clk 0:00:07]} 52. Kxd4 {[%clk 0:00:08]}  Rxe2 {[%clk 0:00:07]} 53. Rxa6 {[%clk 0:00:07]}  Rh2 {[%clk 0:00:06]} 54. Ra7+ {[%clk 0:00:07]}  Kh6 {[%clk 0:00:06]} 55. Rf7 {[%clk 0:00:06]}  Rxh4 {[%clk 0:00:04]} 56. Rxf6 {[%clk 0:00:06]}  Kg7 {[%clk 0:00:04]} 57. Ke5 {[%clk 0:00:06]}  b4 {[%clk 0:00:04]} 58. Rb6 {[%clk 0:00:06]}  Rh3 {[%clk 0:00:04]} 59. Rb7+ {[%clk 0:00:05]}  Kh6 {[%clk 0:00:04]} 60. d4 {[%clk 0:00:06]}  Re3+ {[%clk 0:00:04]} 61. Kf6 {[%clk 0:00:07]}  b3 {[%clk 0:00:04]} 62. d5 {[%clk 0:00:07]}  h4 {[%clk 0:00:04]} 63. d6 {[%clk 0:00:07]}  Rd3 {[%clk 0:00:04]} 64. d7 {[%clk 0:00:06]}  b2 {[%clk 0:00:03]} 65. Ke7 {[%clk 0:00:04]}  h3 {[%clk 0:00:03]} 66. Rxb2 {[%clk 0:00:03]}  g5 {[%clk 0:00:03]} 67. Rb3 {[%clk 0:00:02]}  Rxd7+ {[%clk 0:00:02]} 68. Kxd7 {[%clk 0:00:02]}  g4 {[%clk 0:00:03]} 69. f5 {[%clk 0:00:02]}  h2 {[%clk 0:00:03]} 70. Rb1 {[%clk 0:00:01]}  g3 {[%clk 0:00:03]} 71. f6 {[%clk 0:00:02]}  Kg6 {[%clk 0:00:03]} 72. Ke7 {[%clk 0:00:02]}  g2 {[%clk 0:00:04]} 73. f7 {[%clk 0:00:03]}  g1=Q {[%clk 0:00:05]} 74. Rb6+ {[%clk 0:00:03]}  Qxb6 {[%clk 0:00:03]} 75. f8=Q {[%clk 0:00:04]}  Qc5+ {[%clk 0:00:04]} 76. Ke8 {[%clk 0:00:04]}  Qxf8+ {[%clk 0:00:05]} 77. Kxf8 {[%clk 0:00:05]}  h1=Q {[%clk 0:00:05]} 0-1


[Site "https://www.chess.com"]

[Event "Titled Tuesday Blitz May 4 2021"]
[White "Kovalev, Egor"]
[Black "Martinez Lopez, David"]
[WhiteFideId "24124117"]
[BlackFideId "22235779"]
[WhiteElo "2253"]
[BlackElo "2366"]
[Result "0-1"]
[Round "04"]
[TimeControl "180+1"]
[Date "2021.05.04"]
[WhiteClock "0:00:26"]
[BlackClock "0:00:03"]

1. e4 {[%clk 0:03:00]}  c5 {[%clk 0:02:57]} 2. Nf3 {[%clk 0:03:00]}  d6 {[%clk 0:02:58]} 3. d4 {[%clk 0:03:01]}  cxd4 {[%clk 0:02:58]} 4. Nxd4 {[%clk 0:03:02]}  Nf6 {[%clk 0:02:59]} 5. Nc3 {[%clk 0:03:03]}  a6 {[%clk 0:02:59]} 6. f3 {[%clk 0:03:03]}  e5 {[%clk 0:02:57]} 7. Nb3 {[%clk 0:03:03]}  Be7 {[%clk 0:02:57]} 8. Be3 {[%clk 0:03:02]}  Be6 {[%clk 0:02:57]} 9. Qd2 {[%clk 0:03:02]}  O-O {[%clk 0:02:57]} 10. O-O-O {[%clk 0:03:02]}  a5 {[%clk 0:02:57]} 11. a4 {[%clk 0:03:01]}  Nc6 {[%clk 0:02:57]} 12. Kb1 {[%clk 0:03:01]}  Nb4 {[%clk 0:02:56]} 13. g4 {[%clk 0:03:01]}  d5 {[%clk 0:02:56]} 14. g5 {[%clk 0:03:01]}  d4 {[%clk 0:02:45]} 15. gxf6 {[%clk 0:03:01]}  Bxf6 {[%clk 0:02:45]} 16. Nxd4 {[%clk 0:02:59]}  exd4 {[%clk 0:02:45]} 17. Bxd4 {[%clk 0:03:00]}  Rc8 {[%clk 0:02:35]} 18. Rg1 {[%clk 0:02:58]}  g6 {[%clk 0:02:16]} 19. f4 {[%clk 0:02:13]}  Nc6 {[%clk 0:01:25]} 20. Bxf6 {[%clk 0:01:56]}  Qxf6 {[%clk 0:01:26]} 21. f5 {[%clk 0:01:55]}  Rfd8 {[%clk 0:01:25]} 22. Qe1 {[%clk 0:01:19]}  Rxd1+ {[%clk 0:01:22]} 23. Qxd1 {[%clk 0:01:20]}  Rd8 {[%clk 0:01:19]} 24. Bd3 {[%clk 0:01:21]}  Bc4 {[%clk 0:01:18]} 25. fxg6 {[%clk 0:01:16]}  hxg6 {[%clk 0:01:12]} 26. Qf1 {[%clk 0:01:10]}  Qxf1+ {[%clk 0:01:02]} 27. Bxf1 {[%clk 0:01:11]}  Be6 {[%clk 0:00:47]} 28. Bb5 {[%clk 0:01:08]}  Nb4 {[%clk 0:00:44]} 29. Rd1 {[%clk 0:01:04]}  Rc8 {[%clk 0:00:29]} 30. Bd7 {[%clk 0:01:01]}  Rc5 {[%clk 0:00:19]} 31. Bxe6 {[%clk 0:00:56]}  fxe6 {[%clk 0:00:20]} 32. Rd8+ {[%clk 0:00:56]}  Kg7 {[%clk 0:00:19]} 33. Rd7+ {[%clk 0:00:57]}  Kf6 {[%clk 0:00:19]} 34. Rxb7 {[%clk 0:00:58]}  Rg5 {[%clk 0:00:18]} 35. b3 {[%clk 0:00:58]}  Rg1+ {[%clk 0:00:16]} 36. Kb2 {[%clk 0:00:58]}  Rg2 {[%clk 0:00:16]} 37. Rxb4 {[%clk 0:00:55]}  axb4 {[%clk 0:00:15]} 38. Na2 {[%clk 0:00:56]}  Rxh2 {[%clk 0:00:13]} 39. Nxb4 {[%clk 0:00:57]}  g5 {[%clk 0:00:13]} 40. a5 {[%clk 0:00:53]}  g4 {[%clk 0:00:13]} 41. a6 {[%clk 0:00:53]}  g3 {[%clk 0:00:13]} 42. e5+ {[%clk 0:00:43]}  Kf5 {[%clk 0:00:10]} 43. Nc6 {[%clk 0:00:36]}  Rh8 {[%clk 0:00:06]} 44. b4 {[%clk 0:00:27]}  g2 {[%clk 0:00:05]} 45. Nd4+ {[%clk 0:00:27]}  Ke4 {[%clk 0:00:05]} 46. Ne2 {[%clk 0:00:27]}  Ke3 {[%clk 0:00:05]} 47. Ng1 {[%clk 0:00:27]}  Kf2 {[%clk 0:00:05]} 48. b5 {[%clk 0:00:22]}  Kxg1 {[%clk 0:00:04]} 49. b6 {[%clk 0:00:23]}  Kf1 {[%clk 0:00:01]} 50. a7 {[%clk 0:00:23]}  g1=Q {[%clk 0:00:01]} 51. b7 {[%clk 0:00:24]}  Qd4+ {[%clk 0:00:02]} 52. c3 {[%clk 0:00:24]}  Qb6+ {[%clk 0:00:02]} 53. Kc2 {[%clk 0:00:25]}  Qxb7 {[%clk 0:00:03]} 54. a8=Q {[%clk 0:00:26]}  Qxa8 {[%clk 0:00:03]} 0-1


[Site "https://www.chess.com"]

[Event "Titled Tuesday Blitz May 4 2021"]
[White "Kovalev, Vladislav"]
[Black "Tisaj, Domen"]
[WhiteFideId "13504398"]
[BlackFideId "14628708"]
[WhiteElo "2785"]
[BlackElo "2626"]
[Result "0-1"]
[Round "04"]
[TimeControl "180+1"]
[Date "2021.05.04"]
[WhiteClock "0:00:02"]
[BlackClock "0:00:24"]

1. e4 {[%clk 0:03:00]}  c5 {[%clk 0:02:57]} 2. Nf3 {[%clk 0:03:00]}  Nc6 {[%clk 0:02:58]} 3. d4 {[%clk 0:02:59]}  cxd4 {[%clk 0:02:59]} 4. Nxd4 {[%clk 0:03:00]}  e5 {[%clk 0:02:59]} 5. Nb5 {[%clk 0:03:00]}  d6 {[%clk 0:02:59]} 6. N1c3 {[%clk 0:03:01]}  a6 {[%clk 0:02:59]} 7. Na3 {[%clk 0:03:01]}  Be7 {[%clk 0:03:00]} 8. Nc4 {[%clk 0:03:01]}  b5 {[%clk 0:02:59]} 9. Ne3 {[%clk 0:03:01]}  Nf6 {[%clk 0:03:00]} 10. g3 {[%clk 0:02:59]}  O-O {[%clk 0:02:59]} 11. Bg2 {[%clk 0:02:59]}  b4 {[%clk 0:02:59]} 12. Ncd5 {[%clk 0:02:59]}  Nxd5 {[%clk 0:02:57]} 13. Nxd5 {[%clk 0:02:59]}  Bg5 {[%clk 0:02:57]} 14. Ne3 {[%clk 0:02:06]}  Nd4 {[%clk 0:02:42]} 15. h4 {[%clk 0:02:04]}  Bh6 {[%clk 0:02:34]} 16. O-O {[%clk 0:01:56]}  Be6 {[%clk 0:02:32]} 17. Bd2 {[%clk 0:01:37]}  Rc8 {[%clk 0:02:29]} 18. Rc1 {[%clk 0:01:18]}  a5 {[%clk 0:02:30]} 19. c3 {[%clk 0:00:59]}  bxc3 {[%clk 0:02:27]} 20. Bxc3 {[%clk 0:01:00]}  Bxa2 {[%clk 0:02:20]} 21. Ra1 {[%clk 0:00:57]}  Bb3 {[%clk 0:02:20]} 22. Qg4 {[%clk 0:00:40]}  Bxe3 {[%clk 0:02:14]} 23. fxe3 {[%clk 0:00:40]}  Nc2 {[%clk 0:02:15]} 24. Bxa5 {[%clk 0:00:21]}  Qe7 {[%clk 0:02:09]} 25. Bd2 {[%clk 0:00:16]}  Nxa1 {[%clk 0:02:07]} 26. Rxa1 {[%clk 0:00:17]}  Rc2 {[%clk 0:01:59]} 27. Bc3 {[%clk 0:00:17]}  Qe6 {[%clk 0:01:39]} 28. Qf5 {[%clk 0:00:08]}  g6 {[%clk 0:01:29]} 29. Qf3 {[%clk 0:00:07]}  Bc4 {[%clk 0:01:26]} 30. Qd1 {[%clk 0:00:07]}  Re2 {[%clk 0:01:16]} 31. Rc1 {[%clk 0:00:01]}  Rxe3 {[%clk 0:01:14]} 32. Be1 {[%clk 0:00:01]}  Rd3 {[%clk 0:01:01]} 33. Qc2 {[%clk 0:00:01]}  Rc8 {[%clk 0:00:56]} 34. Bf1 {[%clk 0:00:02]}  Ba6 {[%clk 0:00:56]} 35. Qxc8+ {[%clk 0:00:01]}  Bxc8 {[%clk 0:00:55]} 36. Bxd3 {[%clk 0:00:02]}  Kg7 {[%clk 0:00:49]} 37. b4 {[%clk 0:00:02]}  Bb7 {[%clk 0:00:48]} 38. Bf2 {[%clk 0:00:03]}  d5 {[%clk 0:00:45]} 39. b5 {[%clk 0:00:02]}  dxe4 {[%clk 0:00:44]} 40. Bf1 {[%clk 0:00:02]}  Qb3 {[%clk 0:00:24]} 41. Rc7 {[%clk 0:00:02]}  Bd5 {[%clk 0:00:24]} 0-1


[Site "https://www.chess.com"]